[Event "Titled Tuesday Blitz May 31 Early 2022"]
[White "Samarth, J Rao"]
[Black "Vifleemskaia, Svetlana"]
[WhiteFideId "46652370"]
[BlackFideId "4129490"]
[WhiteElo "1514"]
[BlackElo "1929"]
[Result "1-0"]
[Round "07"]
[TimeControl "180+1"]
[Date "2022.06.01"]
[WhiteClock "0:00:03"]
[BlackClock "0:00:02"]

1. e4 {[%clk 0:02:57]}  e5 {[%clk 0:02:59]} 2. d4 {[%clk 0:02:54]}  exd4 {[%clk 0:02:59]} 3. Qxd4 {[%clk 0:02:51]}  Nc6 {[%clk 0:02:58]} 4. Qe3 {[%clk 0:02:50]}  Nf6 {[%clk 0:02:57]} 5. Bd2 {[%clk 0:02:49]}  Be7 {[%clk 0:02:49]} 6. Nc3 {[%clk 0:02:40]}  d5 {[%clk 0:02:49]} 7. exd5 {[%clk 0:02:36]}  Nxd5 {[%clk 0:02:48]} 8. Qg3 {[%clk 0:02:33]}  Nxc3 {[%clk 0:02:25]} 9. Bxc3 {[%clk 0:02:29]}  Bf6 {[%clk 0:02:25]} 10. Bb5 {[%clk 0:02:16]}  O-O {[%clk 0:02:11]} 11. Ne2 {[%clk 0:02:14]}  Re8 {[%clk 0:02:02]} 12. O-O {[%clk 0:02:12]}  Bf5 {[%clk 0:01:43]} 13. Rad1 {[%clk 0:02:00]}  Qe7 {[%clk 0:01:36]} 14. Bxc6 {[%clk 0:01:40]}  bxc6 {[%clk 0:01:34]} 15. Nd4 {[%clk 0:01:39]}  Bd7 {[%clk 0:01:10]} 16. Rfe1 {[%clk 0:01:30]}  Qd6 {[%clk 0:00:52]} 17. Nf3 {[%clk 0:00:35]}  Qxg3 {[%clk 0:00:41]} 18. Rxe8+ {[%clk 0:00:27]}  Rxe8 {[%clk 0:00:32]} 19. fxg3 {[%clk 0:00:24]}  Bxc3 {[%clk 0:00:30]} 20. bxc3 {[%clk 0:00:21]}  Be6 {[%clk 0:00:29]} 21. a3 {[%clk 0:00:21]}  f6 {[%clk 0:00:27]} 22. Re1 {[%clk 0:00:18]}  Kf7 {[%clk 0:00:24]} 23. Nd4 {[%clk 0:00:17]}  Bd5 {[%clk 0:00:23]} 24. Rd1 {[%clk 0:00:17]}  Re3 {[%clk 0:00:19]} 25. Rd3 {[%clk 0:00:17]}  Re1+ {[%clk 0:00:18]} 26. Kf2 {[%clk 0:00:18]}  Ra1 {[%clk 0:00:19]} 27. c4 {[%clk 0:00:12]}  Bxc4 {[%clk 0:00:18]} 28. Rc3 {[%clk 0:00:12]}  Bd5 {[%clk 0:00:18]} 29. Nxc6 {[%clk 0:00:13]}  Bxc6 {[%clk 0:00:16]} 30. Rxc6 {[%clk 0:00:12]}  Rxa3 {[%clk 0:00:16]} 31. Rxc7+ {[%clk 0:00:13]}  Kg6 {[%clk 0:00:17]} 32. c4 {[%clk 0:00:13]}  a5 {[%clk 0:00:17]} 33. c5 {[%clk 0:00:12]}  Ra2+ {[%clk 0:00:18]} 34. Ke3 {[%clk 0:00:07]}  a4 {[%clk 0:00:19]} 35. c6 {[%clk 0:00:07]}  a3 {[%clk 0:00:18]} 36. Kd3 {[%clk 0:00:06]}  Rxg2 {[%clk 0:00:10]} 37. Ra7 {[%clk 0:00:06]}  Rg1 {[%clk 0:00:05]} 38. Kc2 {[%clk 0:00:06]}  Rg2+ {[%clk 0:00:02]} 39. Kb3 {[%clk 0:00:05]}  Rg1 {[%clk 0:00:03]} 40. Kxa3 {[%clk 0:00:04]}  Rc1 {[%clk 0:00:03]} 41. c7 {[%clk 0:00:03]}  h5 {[%clk 0:00:03]} 42. Kb2 {[%clk 0:00:03]}  Rc6 {[%clk 0:00:03]} 43. Rb7 {[%clk 0:00:04]}  Kg5 {[%clk 0:00:01]} 44. Kb3 {[%clk 0:00:02]}  g6 {[%clk 0:00:02]} 45. Kb4 {[%clk 0:00:01]}  Kg4 {[%clk 0:00:02]} 46. Kb5 {[%clk 0:00:02]}  Rc1 {[%clk 0:00:02]} 47. Kb6 {[%clk 0:00:02]}  g5 {[%clk 0:00:02]} 48. Ka7 {[%clk 0:00:03]}  h4 {[%clk 0:00:02]} 49. gxh4 {[%clk 0:00:02]}  Kxh4 {[%clk 0:00:03]} 50. Kb8 {[%clk 0:00:03]}  g4 {[%clk 0:00:03]} 51. c8=Q {[%clk 0:00:03]}  Rxc8+ {[%clk 0:00:03]} 52. Kxc8 {[%clk 0:00:03]}  Kh3 {[%clk 0:00:03]} 53. Rh7+ {[%clk 0:00:04]}  Kg2 {[%clk 0:00:03]} 54. Kd7 {[%clk 0:00:04]}  f5 {[%clk 0:00:04]} 55. Ke6 {[%clk 0:00:05]}  f4 {[%clk 0:00:04]} 56. Kf5 {[%clk 0:00:05]}  g3 {[%clk 0:00:04]} 57. hxg3 {[%clk 0:00:04]}  fxg3 {[%clk 0:00:05]} 58. Kg4 {[%clk 0:00:05]}  Kf2 {[%clk 0:00:02]} 59. Ra7 {[%clk 0:00:04]}  g2 {[%clk 0:00:02]} 60. Ra2+ {[%clk 0:00:04]}  Kf1 {[%clk 0:00:02]} 61. Kf3 {[%clk 0:00:03]}  g1=Q {[%clk 0:00:02]} 62. Ra1# {[%clk 0:00:03]} 1-0


[Site "https://www.chess.com"]

[Event "Titled Tuesday Blitz May 31 Early 2022"]
[White "Sargsyan, Anna M."]
[Black "Devaev, Alexander"]
[WhiteFideId "13308130"]
[BlackFideId "4169395"]
[WhiteElo "2271"]
[BlackElo "2185"]
[Result "1-0"]
[Round "07"]
[TimeControl "180+1"]
[Date "2022.06.01"]
[WhiteClock "0:00:06"]
[BlackClock "0:00:01"]

1. d4 {[%clk 0:02:56]}  Nf6 {[%clk 0:02:59]} 2. c4 {[%clk 0:02:56]}  e6 {[%clk 0:02:59]} 3. Nf3 {[%clk 0:02:56]}  c5 {[%clk 0:02:58]} 4. d5 {[%clk 0:02:53]}  exd5 {[%clk 0:02:59]} 5. cxd5 {[%clk 0:02:54]}  d6 {[%clk 0:02:59]} 6. Nc3 {[%clk 0:02:55]}  g6 {[%clk 0:03:00]} 7. Nd2 {[%clk 0:02:55]}  Nbd7 {[%clk 0:02:59]} 8. Nc4 {[%clk 0:02:54]}  Nb6 {[%clk 0:02:59]} 9. Nxb6 {[%clk 0:02:52]}  Qxb6 {[%clk 0:02:58]} 10. Qc2 {[%clk 0:02:50]}  Bg7 {[%clk 0:02:58]} 11. Bf4 {[%clk 0:02:49]}  O-O {[%clk 0:02:58]} 12. e3 {[%clk 0:02:49]}  Bf5 {[%clk 0:02:56]} 13. Bd3 {[%clk 0:02:47]}  Bxd3 {[%clk 0:02:29]} 14. Qxd3 {[%clk 0:02:48]}  Qxb2 {[%clk 0:02:29]} 15. Rb1 {[%clk 0:02:48]}  Qa3 {[%clk 0:02:28]} 16. O-O {[%clk 0:02:10]}  c4 {[%clk 0:01:58]} 17. Qxc4 {[%clk 0:01:59]}  Rfc8 {[%clk 0:01:44]} 18. Nb5 {[%clk 0:01:59]}  Rxc4 {[%clk 0:01:36]} 19. Nxa3 {[%clk 0:01:59]}  Ra4 {[%clk 0:01:37]} 20. Bxd6 {[%clk 0:01:57]}  Ne4 {[%clk 0:01:13]} 21. Be7 {[%clk 0:01:53]}  Nd2 {[%clk 0:01:13]} 22. Rxb7 {[%clk 0:01:47]}  Nxf1 {[%clk 0:01:12]} 23. Kxf1 {[%clk 0:01:48]}  Bf8 {[%clk 0:01:10]} 24. Nb5 {[%clk 0:01:39]}  Bxe7 {[%clk 0:00:45]} 25. Rxe7 {[%clk 0:01:40]}  Ra5 {[%clk 0:00:45]} 26. Nc7 {[%clk 0:01:35]}  Rd8 {[%clk 0:00:45]} 27. e4 {[%clk 0:01:28]}  Rxa2 {[%clk 0:00:46]} 28. e5 {[%clk 0:01:25]}  a5 {[%clk 0:00:17]} 29. d6 {[%clk 0:01:23]}  Rd2 {[%clk 0:00:11]} 30. Ke1 {[%clk 0:01:17]}  Rd4 {[%clk 0:00:11]} 31. Ke2 {[%clk 0:01:05]}  Kf8 {[%clk 0:00:11]} 32. e6 {[%clk 0:01:02]}  R4xd6 {[%clk 0:00:10]} 33. Rxf7+ {[%clk 0:01:01]}  Kg8 {[%clk 0:00:10]} 34. Rf6 {[%clk 0:00:51]}  Rc8 {[%clk 0:00:09]} 35. Nb5 {[%clk 0:00:49]}  Rd5 {[%clk 0:00:09]} 36. Na3 {[%clk 0:00:42]}  Re8 {[%clk 0:00:09]} 37. Nc4 {[%clk 0:00:40]}  Kg7 {[%clk 0:00:08]} 38. Rf7+ {[%clk 0:00:40]}  Kh6 {[%clk 0:00:08]} 39. Ne3 {[%clk 0:00:21]}  Re5 {[%clk 0:00:08]} 40. Kf3 {[%clk 0:00:20]}  g5 {[%clk 0:00:04]} 41. Ng4+ {[%clk 0:00:19]}  Kh5 {[%clk 0:00:04]} 42. Nxe5 {[%clk 0:00:19]}  h6 {[%clk 0:00:05]} 43. g4+ {[%clk 0:00:18]}  Kh4 {[%clk 0:00:05]} 44. Rh7 {[%clk 0:00:18]}  Rxe6 {[%clk 0:00:05]} 45. Nf7 {[%clk 0:00:12]}  Rf6+ {[%clk 0:00:05]} 46. Kg2 {[%clk 0:00:11]}  Kxg4 {[%clk 0:00:04]} 47. Nxh6+ {[%clk 0:00:10]}  Kf4 {[%clk 0:00:05]} 48. h3 {[%clk 0:00:07]}  Ra6 {[%clk 0:00:03]} 49. Rf7+ {[%clk 0:00:07]}  Ke4 {[%clk 0:00:03]} 50. Re7+ {[%clk 0:00:06]}  Kd4 {[%clk 0:00:02]} 51. Nf5+ {[%clk 0:00:06]}  Kc4 {[%clk 0:00:02]} 52. Ne3+ {[%clk 0:00:07]}  Kc3 {[%clk 0:00:01]} 53. Rc7+ {[%clk 0:00:06]}  Kd4 {[%clk 0:00:01]} 54. Rc4+ {[%clk 0:00:05]}  Ke5 {[%clk 0:00:01]} 55. Ra4 {[%clk 0:00:06]} 1-0


[Site "https://www.chess.com"]

[Event "Titled Tuesday Blitz May 31 Early 2022"]
[White "Stankovic, Ivan G"]
[Black "Gong, Patrick"]
[WhiteFideId "902837"]
[BlackFideId "3222500"]
[WhiteElo "2195"]
[BlackElo "2103"]
[Result "0-1"]
[Round "07"]
[TimeControl "180+1"]
[Date "2022.06.01"]
[WhiteClock "0:00:06"]
[BlackClock "0:00:10"]

1. e4 {[%clk 0:03:00]}  c6 {[%clk 0:02:57]} 2. d4 {[%clk 0:03:00]}  d5 {[%clk 0:02:58]} 3. e5 {[%clk 0:03:01]}  Bf5 {[%clk 0:02:57]} 4. Nf3 {[%clk 0:03:01]}  e6 {[%clk 0:02:56]} 5. Be2 {[%clk 0:03:01]}  c5 {[%clk 0:02:55]} 6. c3 {[%clk 0:02:59]}  Qb6 {[%clk 0:02:51]} 7. Nbd2 {[%clk 0:02:45]}  Nc6 {[%clk 0:02:47]} 8. dxc5 {[%clk 0:02:37]}  Bxc5 {[%clk 0:02:46]} 9. O-O {[%clk 0:02:38]}  Bg6 {[%clk 0:02:38]} 10. Nb3 {[%clk 0:02:38]}  Be7 {[%clk 0:02:38]} 11. Bf4 {[%clk 0:02:35]}  Nh6 {[%clk 0:02:22]} 12. Bd3 {[%clk 0:02:06]}  Bxd3 {[%clk 0:02:15]} 13. Qxd3 {[%clk 0:02:06]}  Nf5 {[%clk 0:02:15]} 14. g4 {[%clk 0:02:04]}  Nh4 {[%clk 0:02:14]} 15. Nxh4 {[%clk 0:02:01]}  Bxh4 {[%clk 0:02:15]} 16. Kg2 {[%clk 0:01:53]}  Be7 {[%clk 0:02:11]} 17. Bg3 {[%clk 0:01:47]}  h5 {[%clk 0:02:10]} 18. h3 {[%clk 0:01:45]}  a5 {[%clk 0:02:05]} 19. Rab1 {[%clk 0:01:43]}  a4 {[%clk 0:02:04]} 20. Nd2 {[%clk 0:01:39]}  Qa6 {[%clk 0:01:59]} 21. Qf3 {[%clk 0:01:16]}  Bg5 {[%clk 0:01:36]} 22. Rfd1 {[%clk 0:01:12]}  Qa5 {[%clk 0:01:28]} 23. Qd3 {[%clk 0:01:03]}  Bxd2 {[%clk 0:01:11]} 24. Rxd2 {[%clk 0:01:02]}  Qa6 {[%clk 0:01:12]} 25. Qe3 {[%clk 0:00:58]}  Qc4 {[%clk 0:01:11]} 26. b3 {[%clk 0:00:41]}  axb3 {[%clk 0:01:08]} 27. axb3 {[%clk 0:00:42]}  Qb5 {[%clk 0:01:04]} 28. Qg5 {[%clk 0:00:41]}  hxg4 {[%clk 0:00:59]} 29. Qxg7 {[%clk 0:00:41]}  gxh3+ {[%clk 0:00:58]} 30. Kh2 {[%clk 0:00:41]}  Rf8 {[%clk 0:00:54]} 31. Bh4 {[%clk 0:00:30]}  d4 {[%clk 0:00:49]} 32. Qf6 {[%clk 0:00:23]}  Qxe5+ {[%clk 0:00:46]} 33. Qxe5 {[%clk 0:00:21]}  Nxe5 {[%clk 0:00:47]} 34. Kxh3 {[%clk 0:00:18]}  dxc3 {[%clk 0:00:40]} 35. Rc2 {[%clk 0:00:18]}  Rc8 {[%clk 0:00:39]} 36. Rbc1 {[%clk 0:00:18]}  Rh8 {[%clk 0:00:27]} 37. Rxc3 {[%clk 0:00:18]}  Rxc3+ {[%clk 0:00:27]} 38. Rxc3 {[%clk 0:00:19]}  Kd7 {[%clk 0:00:26]} 39. Kg3 {[%clk 0:00:17]}  Rg8+ {[%clk 0:00:24]} 40. Kh3 {[%clk 0:00:13]}  f5 {[%clk 0:00:23]} 41. Bg3 {[%clk 0:00:13]}  Nc6 {[%clk 0:00:19]} 42. b4 {[%clk 0:00:13]}  Rh8+ {[%clk 0:00:16]} 43. Kg2 {[%clk 0:00:13]}  b5 {[%clk 0:00:17]} 44. Rc5 {[%clk 0:00:12]}  e5 {[%clk 0:00:17]} 45. Rxb5 {[%clk 0:00:11]}  f4 {[%clk 0:00:17]} 46. Bh2 {[%clk 0:00:11]}  Rg8+ {[%clk 0:00:17]} 47. Kf1 {[%clk 0:00:11]}  Kd6 {[%clk 0:00:16]} 48. f3 {[%clk 0:00:08]}  Nd4 {[%clk 0:00:15]} 49. Rb6+ {[%clk 0:00:08]}  Kd5 {[%clk 0:00:15]} 50. Bg1 {[%clk 0:00:07]}  Nxf3 {[%clk 0:00:15]} 51. Rb5+ {[%clk 0:00:08]}  Ke4 {[%clk 0:00:15]} 52. Bf2 {[%clk 0:00:07]}  Ra8 {[%clk 0:00:14]} 53. Ra5 {[%clk 0:00:08]}  Rc8 {[%clk 0:00:14]} 54. Ra1 {[%clk 0:00:07]}  Nd2+ {[%clk 0:00:13]} 55. Ke2 {[%clk 0:00:07]}  Rc2 {[%clk 0:00:11]} 56. Kd1 {[%clk 0:00:06]}  Rb2 {[%clk 0:00:10]} 57. Be1 {[%clk 0:00:06]}  Nc4 {[%clk 0:00:09]} 58. Bc3 {[%clk 0:00:07]}  Rb3 {[%clk 0:00:09]} 59. Kc2 {[%clk 0:00:07]}  Ra3 {[%clk 0:00:09]} 60. Re1+ {[%clk 0:00:05]}  Kd5 {[%clk 0:00:09]} 61. b5 {[%clk 0:00:05]}  Ra2+ {[%clk 0:00:08]} 62. Kb3 {[%clk 0:00:05]}  Ra3+ {[%clk 0:00:09]} 63. Kc2 {[%clk 0:00:05]}  Ne3+ {[%clk 0:00:09]} 64. Kb2 {[%clk 0:00:05]}  Ra4 {[%clk 0:00:10]} 65. Kb3 {[%clk 0:00:05]}  Ra8 {[%clk 0:00:10]} 66. Kb4 {[%clk 0:00:05]}  Nc2+ {[%clk 0:00:09]} 67. Kb3 {[%clk 0:00:05]}  Nxe1 {[%clk 0:00:10]} 68. Bxe1 {[%clk 0:00:06]}  e4 {[%clk 0:00:10]} 0-1


[Site "https://www.chess.com"]

[Event "Titled Tuesday Blitz May 31 Early 2022"]
[White "Stepanencu, Nicodim-Cosmin"]
[Black "Csonka, Balazs"]
[WhiteFideId "1256220"]
[BlackFideId "742910"]
[WhiteElo "1945"]
[BlackElo "2404"]
[Result "1-0"]
[Round "07"]
[TimeControl "180+1"]
[Date "2022.06.01"]
[WhiteClock "0:00:09"]
[BlackClock "0:00:06"]

1. b3 {[%clk 0:03:00]}  e5 {[%clk 0:02:56]} 2. Bb2 {[%clk 0:03:01]}  Nc6 {[%clk 0:02:56]} 3. c4 {[%clk 0:03:00]}  Nf6 {[%clk 0:02:52]} 4. e3 {[%clk 0:03:01]}  d5 {[%clk 0:02:48]} 5. cxd5 {[%clk 0:03:02]}  Nxd5 {[%clk 0:02:49]} 6. a3 {[%clk 0:03:03]}  Bd6 {[%clk 0:02:47]} 7. Qc2 {[%clk 0:03:03]}  O-O {[%clk 0:02:41]} 8. d3 {[%clk 0:03:03]}  f5 {[%clk 0:02:30]} 9. Nd2 {[%clk 0:03:03]}  Qe7 {[%clk 0:02:18]} 10. Ngf3 {[%clk 0:02:57]}  Kh8 {[%clk 0:02:05]} 11. Be2 {[%clk 0:02:57]}  Nf6 {[%clk 0:01:34]} 12. Nc4 {[%clk 0:02:43]}  Bd7 {[%clk 0:00:46]} 13. b4 {[%clk 0:02:34]}  a6 {[%clk 0:00:44]} 14. h3 {[%clk 0:02:27]}  Rae8 {[%clk 0:00:37]} 15. Nfd2 {[%clk 0:02:24]}  f4 {[%clk 0:00:34]} 16. e4 {[%clk 0:02:15]}  b5 {[%clk 0:00:34]} 17. Nxd6 {[%clk 0:02:14]}  cxd6 {[%clk 0:00:35]} 18. Nf3 {[%clk 0:02:03]}  Rc8 {[%clk 0:00:30]} 19. Qd2 {[%clk 0:02:03]}  Rg8 {[%clk 0:00:27]} 20. Rc1 {[%clk 0:01:55]}  Be8 {[%clk 0:00:24]} 21. Bd1 {[%clk 0:01:50]}  Bh5 {[%clk 0:00:21]} 22. Bb3 {[%clk 0:01:44]}  Rgd8 {[%clk 0:00:18]} 23. Bd1 {[%clk 0:00:52]}  Bxf3 {[%clk 0:00:16]} 24. Bxf3 {[%clk 0:00:51]}  g5 {[%clk 0:00:16]} 25. g4 {[%clk 0:00:43]}  Kg7 {[%clk 0:00:14]} 26. Kf1 {[%clk 0:00:40]}  Nd4 {[%clk 0:00:13]} 27. Bxd4 {[%clk 0:00:39]}  exd4 {[%clk 0:00:13]} 28. Kg2 {[%clk 0:00:37]}  Qe5 {[%clk 0:00:13]} 29. h4 {[%clk 0:00:33]}  h6 {[%clk 0:00:12]} 30. hxg5 {[%clk 0:00:33]}  hxg5 {[%clk 0:00:11]} 31. Be2 {[%clk 0:00:24]}  Rc3 {[%clk 0:00:10]} 32. Rxc3 {[%clk 0:00:12]}  dxc3 {[%clk 0:00:10]} 33. Qa2 {[%clk 0:00:13]}  d5 {[%clk 0:00:11]} 34. Bf3 {[%clk 0:00:11]}  d4 {[%clk 0:00:06]} 35. a4 {[%clk 0:00:10]}  Rc8 {[%clk 0:00:06]} 36. axb5 {[%clk 0:00:10]}  axb5 {[%clk 0:00:07]} 37. Qa6 {[%clk 0:00:10]}  c2 {[%clk 0:00:06]} 38. Qxc8 {[%clk 0:00:09]} 1-0


[Site "https://www.chess.com"]

[Event "Titled Tuesday Blitz May 31 Early 2022"]
[White "Swiercz, Dariusz"]
[Black "Barp, Alberto"]
[WhiteFideId "1126881"]
[BlackFideId "872555"]
[WhiteElo "2627"]
[BlackElo "2229"]
[Result "1-0"]
[Round "07"]
[TimeControl "180+1"]
[Date "2022.05.31"]
[WhiteClock "0:01:35"]
[BlackClock "0:01:31"]

1. d4 {[%clk 0:03:00]}  Nf6 {[%clk 0:02:56]} 2. c4 {[%clk 0:03:01]}  e6 {[%clk 0:02:56]} 3. Nc3 {[%clk 0:03:01]}  Bb4 {[%clk 0:02:55]} 4. e3 {[%clk 0:03:02]}  d5 {[%clk 0:02:51]} 5. a3 {[%clk 0:03:01]}  Bxc3+ {[%clk 0:02:50]} 6. bxc3 {[%clk 0:03:02]}  c6 {[%clk 0:02:51]} 7. a4 {[%clk 0:03:01]}  O-O {[%clk 0:02:48]} 8. Nf3 {[%clk 0:03:01]}  b6 {[%clk 0:02:33]} 9. Ba3 {[%clk 0:02:51]}  Re8 {[%clk 0:02:32]} 10. cxd5 {[%clk 0:02:52]}  exd5 {[%clk 0:02:30]} 11. Bd3 {[%clk 0:02:50]}  Ba6 {[%clk 0:02:30]} 12. O-O {[%clk 0:02:50]}  Bxd3 {[%clk 0:02:30]} 13. Qxd3 {[%clk 0:02:51]}  Nbd7 {[%clk 0:02:30]} 14. c4 {[%clk 0:02:47]}  Qc8 {[%clk 0:02:27]} 15. Rfc1 {[%clk 0:02:35]}  Qa6 {[%clk 0:02:26]} 16. Qb3 {[%clk 0:02:30]}  Rac8 {[%clk 0:02:25]} 17. Rc2 {[%clk 0:02:19]}  h6 {[%clk 0:02:03]} 18. Rac1 {[%clk 0:02:17]}  Qb7 {[%clk 0:01:56]} 19. h3 {[%clk 0:02:13]}  Ne4 {[%clk 0:01:54]} 20. cxd5 {[%clk 0:01:36]}  cxd5 {[%clk 0:01:54]} 21. Rxc8 {[%clk 0:01:36]}  Rxc8 {[%clk 0:01:55]} 22. Rxc8+ {[%clk 0:01:36]}  Qxc8 {[%clk 0:01:56]} 23. Qxd5 {[%clk 0:01:37]}  Qc2 {[%clk 0:01:32]} 24. Qxd7 {[%clk 0:01:37]}  Qxf2+ {[%clk 0:01:32]} 25. Kh2 {[%clk 0:01:36]}  Qg3+ {[%clk 0:01:31]} 26. Kh1 {[%clk 0:01:35]}  Nf2+ {[%clk 0:01:30]} 27. Kg1 {[%clk 0:01:35]}  Nxh3+ {[%clk 0:01:31]} 28. Qxh3 {[%clk 0:01:35]} 1-0


[Site "https://www.chess.com"]

[Event "Titled Tuesday Blitz May 31 Early 2022"]
[White "Tarasova, Viktoriya"]
[Black "Potapova, Margarita"]
[WhiteFideId "4175840"]
[BlackFideId "14126869"]
[WhiteElo "2182"]
[BlackElo "2216"]
[Result "1/2-1/2"]
[Round "07"]
[TimeControl "180+1"]
[Date "2022.06.01"]
[WhiteClock "0:00:03"]
[BlackClock "0:00:08"]

1. d4 {[%clk 0:03:00]}  d5 {[%clk 0:03:00]} 2. c4 {[%clk 0:03:00]}  e6 {[%clk 0:03:01]} 3. Nc3 {[%clk 0:03:00]}  c6 {[%clk 0:03:01]} 4. Nf3 {[%clk 0:03:00]}  Nf6 {[%clk 0:02:59]} 5. Bg5 {[%clk 0:02:59]}  dxc4 {[%clk 0:02:58]} 6. e4 {[%clk 0:02:54]}  h6 {[%clk 0:02:58]} 7. Bxf6 {[%clk 0:02:52]}  Qxf6 {[%clk 0:02:56]} 8. Bxc4 {[%clk 0:02:53]}  Qd8 {[%clk 0:02:38]} 9. O-O {[%clk 0:02:52]}  Be7 {[%clk 0:02:38]} 10. Qe2 {[%clk 0:02:48]}  O-O {[%clk 0:02:38]} 11. Rad1 {[%clk 0:02:47]}  Nd7 {[%clk 0:02:38]} 12. Rfe1 {[%clk 0:02:46]}  Nb6 {[%clk 0:02:38]} 13. Bb3 {[%clk 0:02:46]}  a5 {[%clk 0:02:38]} 14. a3 {[%clk 0:02:44]}  a4 {[%clk 0:02:37]} 15. Ba2 {[%clk 0:02:45]}  Qc7 {[%clk 0:02:31]} 16. d5 {[%clk 0:02:43]}  e5 {[%clk 0:02:06]} 17. dxc6 {[%clk 0:02:38]}  bxc6 {[%clk 0:02:05]} 18. Rc1 {[%clk 0:02:35]}  Ba6 {[%clk 0:02:04]} 19. Qc2 {[%clk 0:02:32]}  Qb7 {[%clk 0:01:54]} 20. Nxe5 {[%clk 0:02:27]}  Bg5 {[%clk 0:01:50]} 21. Rcd1 {[%clk 0:02:24]}  Rae8 {[%clk 0:01:46]} 22. Nf3 {[%clk 0:02:16]}  Be7 {[%clk 0:01:45]} 23. e5 {[%clk 0:02:15]}  Kh8 {[%clk 0:01:42]} 24. e6 {[%clk 0:02:12]}  fxe6 {[%clk 0:01:42]} 25. Rxe6 {[%clk 0:02:11]}  Bf6 {[%clk 0:01:41]} 26. Rde1 {[%clk 0:01:57]}  Rd8 {[%clk 0:01:34]} 27. Ne5 {[%clk 0:01:30]}  Bxe5 {[%clk 0:01:28]} 28. R6xe5 {[%clk 0:01:26]}  Bd3 {[%clk 0:01:25]} 29. Qc1 {[%clk 0:01:25]}  Nd7 {[%clk 0:01:15]} 30. Re7 {[%clk 0:01:10]}  Qb6 {[%clk 0:01:14]} 31. R1e3 {[%clk 0:00:45]}  Nf6 {[%clk 0:01:08]} 32. h3 {[%clk 0:00:42]}  Nh5 {[%clk 0:01:00]} 33. g3 {[%clk 0:00:15]}  Nf6 {[%clk 0:00:46]} 34. Bb1 {[%clk 0:00:14]}  Bxb1 {[%clk 0:00:41]} 35. Qxb1 {[%clk 0:00:15]}  Rd2 {[%clk 0:00:42]} 36. Qg6 {[%clk 0:00:14]}  Rg8 {[%clk 0:00:35]} 37. Re2 {[%clk 0:00:13]}  Qxb2 {[%clk 0:00:33]} 38. Rxd2 {[%clk 0:00:12]}  Qxd2 {[%clk 0:00:34]} 39. Ne4 {[%clk 0:00:12]}  Qd1+ {[%clk 0:00:29]} 40. Kg2 {[%clk 0:00:13]}  Qd5 {[%clk 0:00:28]} 41. Kg1 {[%clk 0:00:10]}  Qd1+ {[%clk 0:00:27]} 42. Kg2 {[%clk 0:00:10]}  Qd5 {[%clk 0:00:27]} 43. Kg1 {[%clk 0:00:10]}  Nxe4 {[%clk 0:00:21]} 44. Qxe4 {[%clk 0:00:10]}  Qd6 {[%clk 0:00:18]} 45. Kg2 {[%clk 0:00:10]}  Qxa3 {[%clk 0:00:18]} 46. Re8 {[%clk 0:00:09]}  Qb3 {[%clk 0:00:14]} 47. Rxg8+ {[%clk 0:00:09]}  Kxg8 {[%clk 0:00:08]} 48. Qe8+ {[%clk 0:00:07]}  Kh7 {[%clk 0:00:08]} 49. Qe4+ {[%clk 0:00:07]}  g6 {[%clk 0:00:08]} 50. Qe7+ {[%clk 0:00:07]}  Kh8 {[%clk 0:00:08]} 51. Qe8+ {[%clk 0:00:07]}  Kh7 {[%clk 0:00:09]} 52. Qd7+ {[%clk 0:00:05]}  Kg8 {[%clk 0:00:09]} 53. Qe8+ {[%clk 0:00:05]}  Kg7 {[%clk 0:00:09]} 54. Qe7+ {[%clk 0:00:05]}  Qf7 {[%clk 0:00:09]} 55. Qe5+ {[%clk 0:00:05]}  Kf8 {[%clk 0:00:09]} 56. Qb8+ {[%clk 0:00:05]}  Qe8 {[%clk 0:00:09]} 57. Qd6+ {[%clk 0:00:05]}  Kf7 {[%clk 0:00:08]} 58. Qc7+ {[%clk 0:00:05]}  Ke6 {[%clk 0:00:08]} 59. Qf4 {[%clk 0:00:03]}  c5 {[%clk 0:00:07]} 60. Qxh6 {[%clk 0:00:03]}  Qa8+ {[%clk 0:00:04]} 61. Kh2 {[%clk 0:00:03]}  a3 {[%clk 0:00:04]} 62. Qxg6+ {[%clk 0:00:03]}  Kd7 {[%clk 0:00:04]} 63. Qf7+ {[%clk 0:00:03]}  Kd6 {[%clk 0:00:04]} 64. Qf6+ {[%clk 0:00:04]}  Kc7 {[%clk 0:00:05]} 65. Qe7+ {[%clk 0:00:04]}  Kb6 {[%clk 0:00:05]} 66. Qd6+ {[%clk 0:00:04]}  Qc6 {[%clk 0:00:05]} 67. Qd8+ {[%clk 0:00:03]}  Kb5 {[%clk 0:00:05]} 68. Qd3+ {[%clk 0:00:01]}  Kb4 {[%clk 0:00:04]} 69. Qd2+ {[%clk 0:00:01]}  Ka4 {[%clk 0:00:05]} 70. Qc2+ {[%clk 0:00:01]}  Ka5 {[%clk 0:00:05]} 71. Qc3+ {[%clk 0:00:01]}  Ka4 {[%clk 0:00:05]} 72. Qc2+ {[%clk 0:00:02]}  Kb4 {[%clk 0:00:06]} 73. Qd2+ {[%clk 0:00:02]}  Kb3 {[%clk 0:00:06]} 74. Qd3+ {[%clk 0:00:02]}  Kb2 {[%clk 0:00:06]} 75. Qd2+ {[%clk 0:00:02]}  Kb3 {[%clk 0:00:07]} 76. Qd3+ {[%clk 0:00:03]}  Kb4 {[%clk 0:00:08]} 77. Qd2+ {[%clk 0:00:03]} 1/2-1/2


[Site "https://www.chess.com"]